Cogmind - Beta 13 @@@ ROGUE MODE // 2024.06.27 @ 07:12:27 Player: N00Bk1llr Result: Destroyed by DAS Turret with DAS Cannon Performance ------------- Evolutions (1) 500 Regions Visited (5) 1000 Robots Destroyed (27) 135 Value Destroyed (652) 652 Prototype IDs (12) 240 Alien Tech Used (0) 0 Bonus (0) 0 TOTAL SCORE: 2527 Bonus ------- None Cogmind --------- Core Integrity 0/400 Matter 66/300 Energy 271/280 System Corruption 0% Temperature Cool (1) Movement Walking (190) Ox1 Location -9/Exiles Parts ------- > --- POWER (1) -------- Heavy Ion Engine > --- PROPULSION (2) --- Advanced Myomer Leg > --- UTILITY (3) ------ High-capacity Storage Unit Experimental Targeting Computer System Shield > --- WEAPON (3) ------- Heavy Assault Rifle 8R-AWN's Boregun Mini Grenade Launcher > --- INVENTORY (20) --- Improved Heat Sink Cooling System Huge Storage Unit High-capacity Matter Pod (53) Seismic Detector Advanced Weapon Cycler High-powered Tractor Beam AS-neutralizer No. 17b Advanced Beam Cannon Advanced Beam Cannon Heavy Assault Rifle Heavy Assault Rifle Heavy Assault Rifle 8R-AWN's Boregun Improved Light Cannon Mini Grenade Launcher Heavy Flail Peak State ------------ > --- POWER ------------ Heavy Ion Engine > --- PROPULSION ------- Advanced Myomer Leg > --- UTILITY ---------- High-capacity Storage Unit Experimental Targeting Computer System Shield > --- WEAPON ----------- Heavy Assault Rifle 8R-AWN's Boregun Mini Grenade Launcher > --- INVENTORY -------- Improved Heat Sink Cooling System Huge Storage Unit High-capacity Matter Pod Seismic Detector Advanced Weapon Cycler High-powered Tractor Beam AS-neutralizer No. 17b Advanced Beam Cannon Advanced Beam Cannon Heavy Assault Rifle Heavy Assault Rifle Heavy Assault Rifle 8R-AWN's Boregun Improved Light Cannon Mini Grenade Launcher Heavy Flail [Rating: 40] Favorites ----------- Power Heavy Ion Engine Engine Heavy Ion Engine Propulsion Light Treads Treads Light Treads Leg Advanced Myomer Leg Utility System Shield Device Gravity Neutralizer Storage Huge Storage Unit Processor Experimental Targeting Computer Hackware System Shield Protection Light Armor Plating Weapon Heavy Assault Rifle Energy Gun Pulse Rifle Energy Cannon Advanced Beam Cannon Ballistic Gun Heavy Assault Rifle Ballistic Cannon Improved Light Cannon Launcher Mini Grenade Launcher Build | -11 -10 -10 -9 -9 -9 ------- Run | Yrd Mat Min Mat Min Exi Slots Evolved 2 | . . . 2 . . Power . | . . . . . . Propulsion . | . . . . . . Utility 1 | . . . 1 . . Weapon 1 | . . . 1 . . Parts Attached 41 | 2 4 . 15 1 19 Power 3 | . 1 . 1 . 1 Engine 3 | . 1 . 1 . 1 Core . | . . . . . . Reactor . | . . . . . . Propulsion 6 | 2 . . 1 1 2 Treads 5 | 2 . . 1 1 1 Leg 1 | . . . . . 1 Wheel . | . . . . . . Hover . | . . . . . . Flight . | . . . . . . Utility 10 | . 2 . 3 . 5 Device 2 | . . . . . 2 Storage 3 | . 1 . 1 . 1 Processor 1 | . . . . . 1 Hackware 1 | . . . 1 . . Protection 3 | . 1 . 1 . 1 Artifact . | . . . . . . Weapon 22 | . 1 . 10 . 11 Energy Gun 3 | . . . 3 . . Energy Cannon 1 | . . . 1 . . Ballistic Gun 13 | . 1 . 3 . 9 Ballistic Cannon 3 | . . . 3 . . Launcher 2 | . . . . . 2 Special Weapon . | . . . . . . Impact Weapon . | . . . . . . Slashing Weapon . | . . . . . . Piercing Weapon . | . . . . . . Special Melee Weapon . | . . . . . . Unidentified Prototypes 5 | . . . . . 5 Parts Lost 13 | . 2 . 1 . 10 Power 2 | . 1 . . . 1 Propulsion 3 | . . . . . 3 Utility 2 | . . . . . 2 Weapon 6 | . 1 . 1 . 4 Highest Loss Streak 8 | . 2 . 1 . 8 To Critical Strikes 5 | . . . . . 5 Average Slot Usage (%) 96 | . 86 100 97 100 95 Engine 11 | . 13 14 11 11 11 Treads 21 | . 28 28 22 22 16 Storage 11 | . 14 14 11 11 11 Hackware 8 | . . . 9 11 11 Protection 8 | . 2 14 10 11 6 Energy Gun 6 | . 23 14 8 . . Energy Cannon 5 | . . . 5 11 3 Ballistic Gun 11 | . 3 14 8 11 21 Ballistic Cannon 7 | . . . 10 11 3 Naked Turns . | . . . . . . Heaviest Build 102 | 11 30 30 102 102 102 Greatest Support 40 | 40 40 40 40 40 40 Greatest Overweight (x) 5 | . . . 2 5 4 Average Overweight (x) 1 | . . . . 2 2 Largest Inventory Capacity 25 | 8 15 15 25 25 25 Average Capacity 20 | 8 13 15 17 25 24 Most Carried 25 | 6 9 8 20 21 25 Average Carried 16 | 4 5 8 15 20 19 Final Capacity 25 | 8 15 15 25 25 20 Final Carried 20 | 3 8 8 20 20 17 Class Distribution -------------------- 75% | Tank 17% | Mutant 6% | Gunner Dominant Class ---------------- Mutant | -10/Materials Mutant | -10/Mines Tank | -9/Materials Tank | -9/Mines Tank | -9/Exiles Resources | -11 -10 -10 -9 -9 -9 ----------- Run | Yrd Mat Min Mat Min Exi Matter Collected 1495 | 172 169 . 467 110 577 Remotely . | . . . . . . Salvage Created 1026 | . 173 . 538 189 126 Parts 57 | . 13 . 35 2 7 Haulers Intercepted 2 | . . . 2 . . Recyclers Shooed . | . . . . . . Parts Field Recycled . | . . . . . . Retrieved Matter . | . . . . . . Parts Self-Destructed . | . . . . . . Prevented . | . . . . . . Kills | -11 -10 -10 -9 -9 -9 ------- Run | Yrd Mat Min Mat Min Exi Combat Hostiles Destroyed 28 | . 7 . 9 9 3 Guns 17 | . 7 . 5 2 3 Cannons 11 | . . . 4 7 . Classes Destroyed 10 | . 2 . 6 2 . Worker 1 | . . . 1 . . Builder 1 | . . . . 1 . Hauler 2 | . . . 2 . . Recycler 1 | . . . 1 . . Watcher 3 | . . . 3 . . Swarmer 4 | . 4 . . . . Grunt 10 | . 3 . 5 2 . Brawler 1 | . . . 1 . . Sentry 3 | . . . 3 . . Assembled 9 | . . . . 7 2 Best Kill Streak 6 | . 3 . 2 6 2 Combat Bots Only 5 | . 3 . 2 5 2 Max Kills in Single Turn 2 | . 1 . 2 2 2 Gunslinging 1 | . . . . . 1 Exploded . | . . . . . . Melee . | . . . . . . Uniques/NPCs Destroyed 1 | . . . . . 1 8R-AWN (-9/Exiles) Combat | -11 -10 -10 -9 -9 -9 -------- Run | Yrd Mat Min Mat Min Exi Hostile Shots Fired 193 | . 53 . 37 9 94 Missed 48 | . 16 . 12 4 16 Damage Taken 2643 | . 494 . 325 105 1719 Core 639 | . 222 . 11 11 395 Absorbed by Shields . | . . . . . . Regen/Repaired (Parts) 38 | . . . 38 . . Core Remaining (%) 55 | 100 . 11 . . . Volleys Fired 137 | . 24 . 37 13 63 Largest 3 | . 2 . 3 3 3 Hottest 146 | . 90 . 146 130 69 Shots Fired 332 | . 42 . 104 39 147 Gun 257 | . 42 . 76 13 126 Cannon 54 | . . . 28 26 . Launcher 21 | . . . . . 21 Special . | . . . . . . Kinetic 205 | . 1 . 52 26 126 Thermal 106 | . 41 . 52 13 . Explosive 21 | . . . . . 21 Electromagnetic . | . . . . . . Robot Hit Streak 10 | . 6 . 9 8 10 Robot Miss Streak 5 | . 4 . 5 4 2 Penetration Max . | . . . . . . Secondary Targets 3 | . 1 . 1 . 1 Max Gunslinging Chain 1 | . 1 . 1 . 1 Shots Hit Robots 189 | . 26 . 55 17 91 Core Hits 65 | . 12 . 21 14 18 Critical Kills . | . . . . . . Critical Parts Destroyed 2 | . . . 1 . 1 Critical Strikes 3 | . 1 . 1 . 1 Burn 1 | . 1 . . . . Destroy 2 | . . . 1 . 1 Melee Attacks . | . . . . . . Impact . | . . . . . . Slashing . | . . . . . . Piercing . | . . . . . . Sneak Attacks . | . . . . . . Combat Hostiles . | . . . . . . Follow-up Attacks . | . . . . . . Damage Inflicted 2962 | . 335 . 910 365 1352 Guns 2442 | . 335 . 638 117 1352 Cannons 483 | . . . 235 248 . Explosions . | . . . . . . Melee . | . . . . . . Ramming 37 | . . . 37 . . Kinetic 1893 | . . . 322 219 1352 Thermal 1032 | . 335 . 551 146 . Explosive . | . . . . . . Electromagnetic . | . . . . . . Impact . | . . . . . . Slashing . | . . . . . . Piercing . | . . . . . . Highest Corruption . | . . . . . . Average Corruption . | . . . . . . Corruption Purged . | . . . . . . Corruption Blocked . | . . . . . . Overload Shots . | . . . . . . Overflow Damage . | . . . . . . Projectiles . | . . . . . . Explosions . | . . . . . . Melee . | . . . . . . Knockbacks . | . . . . . . Impact . | . . . . . . Kinetic . | . . . . . . Secondary . | . . . . . . Self-Inflicted Damage 29 | . . . . . 29 Shots 1 | . . . . . 1 Rammed 5 | . . . 5 . . Targets Rammed 7 | . . . 7 . . Kicked . | . . . . . . Crushed 2 | . . . 2 . . Highest Temperature 610 | . 237 . 340 610 154 Average Temperature 116 | . 88 . 116 230 68 Received Heat Transfer 291 | . 147 . 135 9 . Effects 11 | . . . 2 9 . Energy Bleed 6 | . . . 2 4 . Matter Decay 1 | . . . . 1 . Short Circuit 1 | . . . . 1 . Damage (major) 3 | . . . . 3 . Siege Activations . | . . . . . . Robots Corrupted . | . . . . . . Combat Hostiles . | . . . . . . Parts Fried . | . . . . . . Impact Corruptions . | . . . . . . Robots Melted . | . . . . . . Combat Hostiles . | . . . . . . Parts Melted 2 | . 1 . 1 . . Heat Transferred 2350 | . 954 . 1137 259 . Parts Sabotaged . | . . . . . . Parts Stolen . | . . . . . . Parts Stripped . | . . . . . . Power Chain Reactions . | . . . . . . Alert | -11 -10 -10 -9 -9 -9 ------- Run | Yrd Mat Min Mat Min Exi Peak Influence 210 | . 133 26 210 59 . Initial 26 | . . 26 9 9 . Average 57 | . 51 26 97 14 . Maximum Alert Level 1 | . . . 1 . . Low Security (%) 98 | 100 100 100 95 100 . Level 1 1 | . . . 4 . . Level 2 . | . . . . . . Level 3 . | . . . . . . Level 4 . | . . . . . . Level 5 . | . . . . . . High Security . | . . . . . . Max Security . | . . . . . . Squads Dispatched 3 | . . . 3 . . Investigation 2 | . . . 2 . . Extermination . | . . . . . . Reinforcement 1 | . . . 1 . . Assault . | . . . . . . Garrison . | . . . . . . Intercept . | . . . . . . Searches Triggered . | . . . . . . Construction Impeded . | . . . . . . Haulers Reinforced . | . . . . . . Active Scanning Responses . | . . . . . . Cargo Convoy Interrupts . | . . . . . . Stealth | -11 -10 -10 -9 -9 -9 --------- Run | Yrd Mat Min Mat Min Exi Distress Signals 3 | . . . 2 1 . Communications Jammed . | . . . . . . Distress Signals . | . . . . . . Times Spotted 48 | . 15 . 16 9 8 Peak Tracking Total 9 | . 8 . 3 5 9 Tactical Retreats 7 | . 1 . 1 . 5 Traps | -11 -10 -10 -9 -9 -9 ------- Run | Yrd Mat Min Mat Min Exi Traps Triggered 2 | . . . 2 . . Indirectly . | . . . . . . Trap Hack Attempts . | . . . . . . Triggered . | . . . . . . Disarmed . | . . . . . . Reprogrammed . | . . . . . . Reused . | . . . . . . Traps Extracted . | . . . . . . Installed . | . . . . . . Triggered . | . . . . . . Machines | -11 -10 -10 -9 -9 -9 ---------- Run | Yrd Mat Min Mat Min Exi Machines Disabled 5 | . . . 1 . 4 Max in Single Turn 1 | . . . 1 . 1 Machines Repaired . | . . . . . . Machines Dismantled . | . . . . . . Machines Sabotaged . | . . . . . . Overloaded Fab Kills . | . . . . . . Hacking | -11 -10 -10 -9 -9 -9 --------- Run | Yrd Mat Min Mat Min Exi Machines Accessed 11 | . 5 . 6 . . Terminals 9 | . 5 . 4 . . Fabricators . | . . . . . . Repair Stations 1 | . . . 1 . . Recycling Units . | . . . . . . Scanalyzers 1 | . . . 1 . . Garrison Access . | . . . . . . Total Hacks 37 | . 15 . 22 . . Successful 24 | . 11 . 13 . . Failed 13 | . 4 . 9 . . Catastrophic 2 | . 1 . 1 . . Database Lockouts . | . . . . . . Manual 18 | . 9 . 9 . . Terminals 30 | . 15 . 15 . . Fabricators . | . . . . . . Repair Stations 3 | . . . 3 . . Recycling Units . | . . . . . . Scanalyzers 4 | . . . 4 . . Garrison Access . | . . . . . . Terminal Hacks 15 | . 9 . 6 . . Robot Analysis 2 | . 2 . . . . Prototype ID Bank 4 | . 1 . 3 . . Locate Traps 1 | . 1 . . . . Hauler Manifests 3 | . 2 . 1 . . Registered Components 2 | . 1 . 1 . . Registered Prototypes 2 | . 1 . 1 . . Zone Layout 1 | . 1 . . . . Fabricator Hacks . | . . . . . . Repair Station Hacks 2 | . . . 2 . . Scan Component 1 | . . . 1 . . Repair 1 | . . . 1 . . Recycling Unit Hacks . | . . . . . . Scanalyzer 4 | . . . 4 . . Insert Component 2 | . . . 2 . . Analyze 2 | . . . 2 . . Garrison Access Hacks . | . . . . . . Unauthorized Hacks 3 | . 2 . 1 . . Terminals 3 | . 2 . 1 . . Botnet 3 | . 2 . 1 . . Fabricators . | . . . . . . Repair Stations . | . . . . . . Recycling Units . | . . . . . . Scanalyzers . | . . . . . . Garrison Access . | . . . . . . Data Cores Recovered . | . . . . . . Used . | . . . . . . Hacking Detections 9 | . 5 . 4 . . Full Trace Events . | . . . . . . Feedback Events . | . . . . . . Feedback Blocked . | . . . . . . Robot Schematics Acquired . | . . . . . . Robots Built . | . . . . . . Authchips . | . . . . . . Time . | . . . . . . Total Robot Build Rating . | . . . . . . Part Schematics Acquired 2 | . . . 2 . . Parts Built . | . . . . . . Authchips . | . . . . . . Time . | . . . . . . Total Part Build Rating . | . . . . . . Parts Repaired 1 | . . . 1 . . Time 26 | . . . 26 . . Parts Recycled . | . . . . . . Recycled Matter . | . . . . . . Retrieved Matter . | . . . . . . Retrieved Components . | . . . . . . Parts Scanalyzed 2 | . . . 2 . . Part Schematics Acquired 2 | . . . 2 . . Parts Damaged . | . . . . . . Bothacking | -11 -10 -10 -9 -9 -9 ------------ Run | Yrd Mat Min Mat Min Exi Used RIF Installer . | . . . . . . Robots Hacked . | . . . . . . Non-combat . | . . . . . . Combat . | . . . . . . Robot Hacks Applied . | . . . . . . Relay Couplers Released . | . . . . . . Fabnet Peak Effective % . | . . . . . . Robots Rewired . | . . . . . . Allies Hacked . | . . . . . . Hacks Repelled . | . . . . . . Allies | -11 -10 -10 -9 -9 -9 -------- Run | Yrd Mat Min Mat Min Exi Total Allies 1 | . . . . 1 . Largest Group 1 | . . . . 1 . Highest-Rated Group 31 | . . . . 31 . Highest-Rated Ally 31 | . . . . 31 . Total Orders . | . . . . . . Ally Attacks . | . . . . . . Total Damage . | . . . . . . Kills . | . . . . . . Allies Corrupted . | . . . . . . Allies Melted . | . . . . . . Intel | -11 -10 -10 -9 -9 -9 ------- Run | Yrd Mat Min Mat Min Exi Robot Analysis Total 2 | . 2 . . . . Derelict Logs Recovered 1 | . . . . 1 . Drone Launches . | . . . . . . Drone Recoveries . | . . . . . . Exploration | -11 -10 -10 -9 -9 -9 ------------- Run | Yrd Mat Min Mat Min Exi Turns Passed 4735 | 4 576 42 1620 1410 1083 Spaces Moved 1530 | 1 258 27 676 313 255 Core . | . . . . . . Treads 1455 | 1 258 27 676 313 180 Legs 75 | . . . . . 75 Wheels . | . . . . . . Hover . | . . . . . . Flight . | . . . . . . Fastest Speed 160 | 160 160 160 160 320 190 Average Speed 241 | 160 160 160 204 322 329 Slowest Speed 560 | 160 160 160 320 560 480 Overloaded Moves . | . . . . . . Propulsion Burnouts . | . . . . . . Robots Hopped . | . . . . . . Cave-ins Triggered . | . . . . . . Exploration Rate (%) 33 | 2 45 13 49 48 46 Regions Visited 5 Branch Regions 3 Pre-discovered Areas . | . . . . . . Known Exits Taken . | . . . . . . Unknown Exits Taken 5 | 1 1 1 1 1 . Scrap Searched . | . . . . . . Spaces Dug . | . . . . . . Terrain Destroyed 13 | . . . 3 . 10 Melee . | . . . . . . Projectile 3 | . . . 3 . . AOE 10 | . . . . . 10 Terrain Rammed . | . . . . . . Walls Destroyed . | . . . . . . Machines Disabled . | . . . . . . Actions | -11 -10 -10 -9 -9 -9 --------- Run | Yrd Mat Min Mat Min Exi Total 2324 | 5 380 26 841 687 385 Wait 523 | . 85 . 48 359 31 Move 1525 | . 257 26 675 312 255 Hop . | . . . . . . Pick Up 47 | . 8 . 30 1 8 Fast Attach 16 | . 2 . 10 . 4 Attach 17 | 2 2 . 2 . 11 Detach 7 | . . . 3 . 4 Swap 8 | . . . 3 1 4 Drop 37 | 3 2 . 26 1 5 Fire 137 | . 24 . 37 13 63 Melee . | . . . . . . Ram . | . . . . . . Kick . | . . . . . . Crush 7 | . . . 7 . . Escape Stasis . | . . . . . . Rewire . | . . . . . . Trap . | . . . . . . Miscellaneous . | . . . . . . Route ------- -11/Scrapyard -10/Materials -10/Mines -9/Materials (discovered 3 exits: [*Mat x2] / [*Min]) -9/Mines -9/Exiles History --------- Turn | Location | Event 5 | -11/Scrapyard | Discovered new exit (range 0) 5 | -11/Scrapyard | Entered Materials 307 | -10/Materials | Build established: Mutant 417 | -10/Materials | Core integrity fell below 50% 417 | -10/Materials | Core integrity fell below 20% 502 | -10/Materials | Discovered new exit (range 13) 581 | -10/Materials | Entered Mines 617 | -10/Mines | Discovered new exit (range 4) 623 | -10/Mines | Entered Materials 623 | -9/Materials | Evolved 2 slots: Utility x1, Weapon x1 913 | -9/Materials | Build established: Tank 1235 | -9/Materials | Discovered new exit (range 16) 1381 | -9/Materials | Repaired Lgt. Armor Plating 1665 | -9/Materials | Discovered new exit (range 16) 2134 | -9/Materials | Discovered new exit (range 4) 2243 | -9/Materials | Entered Mines 2301 | -9/Mines | Learned location of 1 exit from Lower Caves 2339 | -9/Mines | Assembled infested the area 2344 | -9/Mines | Assisted by a Guerilla fighting off Assembled 3242 | -9/Mines | Received a Mining Laser from a helpful Derelict 3637 | -9/Mines | Deemed a non-threat by the Exiles lab entrance 3637 | -9/Mines | Discovered new exit (range 5) 3653 | -9/Mines | Entered Exiles 3736 | -9/Exiles | Met 8R-AWN 3791 | -9/Exiles | Met EX-HEX 3916 | -9/Exiles | Met EX-DEC 4091 | -9/Exiles | Attacked by the Exiles 4294 | -9/Exiles | Core integrity fell below 50% 4307 | -9/Exiles | Destroyed 8R-AWN 4327 | -9/Exiles | Found Prototype Ballistic Gun 4327 | -9/Exiles | Identified 8R-AWN's Boregun 4332 | -9/Exiles | Lost 8 parts (1p2n2u3w) 4333 | -9/Exiles | Found 8R-AWN's Boregun 4341 | -9/Exiles | Found Prototype Processor 4364 | -9/Exiles | Found Prototype Device 4364 | -9/Exiles | Identified AS-neutralizer No. 17b 4438 | -9/Exiles | Identified Exp. Targeting Computer 4574 | -9/Exiles | Core integrity fell below 20% 4736 | -9/Exiles | Destroyed by DAS Turret with DAS Cannon Last Messages --------------- 04333_ Acquired 8R-AWN's Boregun. 04341_ Acquired Prototype Processor. 04346_ Acquired Prototype Device. 04346_ Identified Gravity Neutralizer. 04348_ Dropped Gravity Neutralizer. 04353_ Acquired Prototype Leg. 04353_ Identified Adv. Myomer Leg. 04355_ Acquired 101 matter. 04364_ Acquired Prototype Device. 04364_ Identified AS-neutralizer No. 17b. 04390_ Extracted 100 matter. 04414_ Extracted 2 energy. 04438_ Identified Exp. Targeting Computer. 04497_ Acquired 15 matter. 04504_ Acquired 10 matter. 04575_ Hvy. Assault Rifle destroyed. 04575_ Mni. Grenade Launcher blasted off. 04679_ Acquired Hcp. Storage Unit. 04706_ Acquired 6 matter. 04723_ Lgt. Treads destroyed. Map ----- +----------------------------------------------------+ | ?????????????????????????????????????????????????? | | ?????????????????????????????????????????????????? | | ?????????????????????????????????????????????????? | | ?????????????????????????????????????????????????? | | ?????????????????????????????????????????????????? | | ?????????????????????????????????????????????????? | | ?????????????????????????????????????????????????? | | ??????????????#######???????????????????????????? | | ######???????#!!! "#???????????????????????????? | | #""#??????# "#???????????????????????????? | | ??????# "#???????????????????????????? | | #????## ""#????????????##?????????????? | | #####" ""#???????????? """??????????? | | # ## ""?????????????" """??????????? | | ?# #" #??????????????" ?????????? | | ????# #?????????????"" ??????????" | | ???????# ##????????????"" "#?????????" | | ????????## "###?????????? ""?????????#" | | ?######## ;;###?????????" "?????????##" | | ?# !!"""" ! ;;#?????????# #????????##"" | | ?# #;; ;#####???### ###?######"" | | ?#! ###; """#####X# #"###""""""" | | ?#! "#?## """""" " "" | | ?# !""""" ""# #?#"# % "" """ " | | ?########## # #?#### %% " " | | ??????????# # ????### @ | | ??????????# ## #?????### | | ??????????# #? #???????## | | ??????????# #?##????????## | | ??????????# #????????????# | | ??????????# #????????????# """" | | ??????????# #????????????## ##### | | ??????????? #????????????# ""##???? | | ??????????? ?????????????#" """##????? | | ??????????? ?????????????"" """##?????? | | ??????????? ?????????????"" ""#??????? | | ??????????? ?????????????"" ????????? | | ??????????? ??????????????"" ???????? | | ??????????????????????????? ????????? | | ???????????????????????????" ????????? | | ?????????????????????????????" ?????????? | | ?????????????????????????????????????????????????? | | ?????????????????????????????????????????????????? | | ?????????????????????????????????????????????????? | | ?????????????????????????????????????????????????? | | ?????????????????????????????????????????????????? | | ?????????????????????????????????????????????????? | | ?????????????????????????????????????????????????? | | ?????????????????????????????????????????????????? | | ?????????????????????????????????????????????????? | +----------------------------------------------------+ Best States ------------- Heat Dissipation 28 Energy Generation 14 Energy Capacity 280 Matter Stores 300 Matter Capacity 300 Sight Range 16 Terrain Scan Density 10 Armor Coverage 150 Evasion (%) 40 Targeting Accuracy 12 Recoil Reduction 2 Defensive Hacking 10 Item Schematics ----------------- Seismic Detector | -9/Materials | Scanalyzed Hcp. Matter Pod | -9/Materials | Scanalyzed Robot Schematics ------------------ None Fabricated ------------ Nothing Alien Tech Used ----------------- None Achievements -------------- None Challenges ------------ None Game ------ Seed MagneticSignalFragment Manual? 0 Play Time 00:23:46 Cumulative 69.1 hours Start 2024.06.27 @ 06:49:04 End 2024.06.27 @ 07:12:27 Sessions 1 Manual Loads 0 Difficulty Rogue Special Mode None Game No. 119 Rogue 97 Adventurer 22 Explorer 0 Win Type - Total 1 Types 1/0/0/0/0/0/0/0/0 Lore% 44 Gallery% 58 Achievement% 49 Wizard Run 0 Options --------- Layout 0 ASCII 0 Keyboard 0 Movement Numpad Keybinds 0 Fullscreen 2 Font 18/SmallcapsGlow Map View 76x50 Zoom Use 0% Tactical HUD 1 Map Filters NONE Filters NONE Steam 1 RUN: 44361289-901e-40c1-a572-fcbae86cafef